Cogmind - Beta 17.1 @@@ ROGUE MODE // 2026.09.22 @ 19:27:32 Player: Lazz Result: Destroyed by Autobeam Turret with Autobeam Performance ------------- Evolutions (0) 0 Regions Visited (2) 400 Robots Destroyed (19) 95 Value Destroyed (374) 374 Prototype IDs (0) 0 Alien Tech Used (0) 0 Bonus (0) 0 TOTAL SCORE: 869 Bonus ------- None Cogmind --------- Core Integrity 0/250 Matter 280/300 Energy 64/100 System Corruption 0% Temperature Cool (6) Movement Rolling (110) Location -10/Subcaves Parts ------- > --- POWER (1) -------- Subdweller Power Source > --- PROPULSION (2) --- Subdweller Monowheel Subdweller Monowheel > --- UTILITY (2) ------ Large Storage Unit Seismic Detector > --- WEAPON (2) ------- Subdweller Laser Grenade Launcher > --- INVENTORY (15) --- Ion Engine Subdweller Power Source Subdweller Monowheel Medium Laser Small Laser Subdweller Laser Subdweller Beam Cannon Assault Rifle Mining Laser Peak State ------------ > --- POWER ------------ Subdweller Power Source > --- PROPULSION ------- Subdweller Monowheel Subdweller Monowheel > --- UTILITY ---------- Large Storage Unit Seismic Detector > --- WEAPON ----------- Subdweller Laser Subdweller Laser > --- INVENTORY -------- Ion Engine Subdweller Power Source Subdweller Monowheel Medium Laser Small Laser Assault Rifle Grenade Launcher Mining Laser [Rating: 13] Favorites ----------- Power Ion Engine Engine Ion Engine Propulsion Light Treads Treads Light Treads Wheel Subdweller Monowheel Utility Large Storage Unit Device Seismic Detector Storage Large Storage Unit Weapon Medium Laser Energy Gun Medium Laser Energy Cannon Subdweller Beam Cannon Launcher Grenade Launcher Special Weapon Mining Laser Build | -11 -10 -10 ------- Run | Yrd Mat Sub Slots Evolved . | . . . Power . | . . . Propulsion . | . . . Utility . | . . . Weapon . | . . . Parts Attached 22 | 9 1 12 Power 3 | 1 . 2 Engine 3 | 1 . 2 Core . | . . . Reactor . | . . . Propulsion 6 | 3 . 3 Treads 2 | 2 . . Leg . | . . . Wheel 4 | 1 . 3 Hover . | . . . Flight . | . . . Utility 5 | 3 1 1 Device 3 | 2 . 1 Storage 2 | 1 1 . Processor . | . . . Hackware . | . . . Protection . | . . . Artifact . | . . . Weapon 8 | 2 . 6 Energy Gun 5 | 2 . 3 Energy Cannon 1 | . . 1 Ballistic Gun . | . . . Ballistic Cannon . | . . . Launcher 1 | . . 1 Special Weapon 1 | . . 1 Impact Weapon . | . . . Slashing Weapon . | . . . Piercing Weapon . | . . . Special Melee Weapon . | . . . Unidentified Prototypes . | . . . Parts Lost 4 | . . 4 Power . | . . . Propulsion 2 | . . 2 Utility 1 | . . 1 Weapon 1 | . . 1 Highest Loss Streak 3 | . . 3 To Critical Strikes . | . . . Average Backups 5 | 1 4 7 Power . | . . 1 Propulsion . | . . . Utility . | . 1 . Weapon 3 | . 3 4 Tool/Special . | . . . Unused Backups 1 | . . 1 Power . | . . . Propulsion . | . . . Utility . | . . . Weapon 1 | . . 1 Tool/Special . | . . . Average Slot Usage (%) 93 | . 100 92 Engine 14 | . 14 14 Treads 17 | . 28 14 Wheel 9 | . . 11 Device 9 | . 14 8 Storage 14 | . 14 14 Energy Gun 26 | . 28 26 Peak Build Rating 13 | 7 7 13 Average Rating 8 | 6 7 9 On Entrance 4 | . 7 7 Avg Prop Armor Cover (%) 10 | . . 10 Naked Turns . | . . . Heaviest Build 38 | 14 29 38 Greatest Support 40 | 40 40 40 Greatest Overweight (x) 10 | 2 . 10 Average Overweight (x) . | . . . Largest Inventory Capacity 15 | 8 15 15 Average Capacity 13 | 7 11 15 Most Carried 10 | 4 6 10 Average Carried 5 | 1 4 7 Final Capacity 15 | 8 15 15 Final Carried 9 | 3 5 9 Class Distribution -------------------- 83% | Mutant 16% | Scavenger-Mutant Dominant Class ---------------- Mutant | -10/Materials Mutant | -10/Subcaves Resources | -11 -10 -10 ----------- Run | Yrd Mat Sub Matter Collected 420 | 290 . 130 Remotely . | . . . Salvage Created 554 | 190 . 364 Parts 46 | 15 . 31 Haulers Intercepted . | . . . Recyclers Shooed 1 | 1 . . Parts Field Recycled . | . . . Retrieved Matter . | . . . Parts Self-Destructed 6 | . . 6 Prevented . | . . . Parts Restored . | . . . Kills | -11 -10 -10 ------- Run | Yrd Mat Sub Combat Hostiles Destroyed 13 | . . 13 Guns 6 | . . 6 Cannons 1 | . . 1 AOE 6 | . . 6 Classes Destroyed 6 | 3 . 3 Worker 2 | 2 . . Tunneler 3 | 3 . . Recycler 1 | 1 . . Swarmer 6 | . . 6 Sentry 1 | . . 1 Subdweller 6 | . . 6 Best Kill Streak 4 | 3 . 4 Combat Bots Only 4 | . . 4 Max Kills in Single Turn 3 | 1 . 3 Gunslinging . | . . . Exploded 3 | . . 3 Melee . | . . . Uniques/NPCs Destroyed . | . . . Combat | -11 -10 -10 -------- Run | Yrd Mat Sub Hostile Shots Fired 89 | . . 89 Missed 32 | . . 32 Hits 57 | . . 57 Projectile 57 | . . 57 Critical Strikes 5 | . . 5 Damage Taken 1101 | . . 1101 Core 250 | . . 250 Absorbed by Shields . | . . . Core Remaining (%) 100 | 100 . . Volleys Fired 63 | 19 . 44 Largest 2 | 2 . 2 Hottest 140 | 90 . 140 Shots Fired 120 | 38 . 82 Gun 116 | 38 . 78 Cannon 1 | . . 1 Launcher 2 | . . 2 Special 1 | . . 1 Kinetic . | . . . Thermal 118 | 38 . 80 Explosive 2 | . . 2 Electromagnetic . | . . . Robot Hit Streak 22 | 6 . 22 Robot Miss Streak 3 | 3 . 2 Penetration Max . | . . . Secondary Targets 2 | . . 2 Max Gunslinging Chain 1 | . . 1 Shots Hit Robots 90 | 23 . 67 Core Hits 30 | 7 . 23 Critical Kills . | . . . Critical Parts Destroyed . | . . . Critical Strikes 9 | 2 . 7 Burn 8 | 2 . 6 Destroy 1 | . . 1 Melee Attacks . | . . . Impact . | . . . Slashing . | . . . Piercing . | . . . Sneak Attacks . | . . . Combat Hostiles . | . . . Follow-up Attacks . | . . . Damage Inflicted 1439 | 278 . 1161 Guns 1155 | 278 . 877 Cannons 29 | . . 29 Explosions 255 | . . 255 Melee . | . . . Ramming . | . . . Kinetic . | . . . Thermal 1184 | 278 . 906 Explosive 255 | . . 255 Electromagnetic . | . . . Impact . | . . . Slashing . | . . . Piercing . | . . . Highest Corruption . | . . . Average Corruption . | . . . Corruption Purged . | . . . Corruption Blocked . | . . . Overload Shots . | . . . Overflow Damage . | . . . Projectiles . | . . . Explosions . | . . . Melee . | . . . Knockbacks . | . . . Impact . | . . . Kinetic . | . . . Secondary . | . . . Self-Inflicted Damage . | . . . Shots . | . . . Rammed . | . . . Targets Rammed . | . . . Kicked . | . . . Crushed . | . . . Highest Temperature 240 | 240 . 27 Average Temperature 80 | 88 . 8 Received Heat Transfer 180 | . . 180 Siege Activations . | . . . Martial Activations . | . . . Shielding Activations . | . . . Robots Disrupted . | . . . Combat Hostiles . | . . . Robots Corrupted . | . . . Combat Hostiles . | . . . Parts Fried . | . . . Impact Corruptions . | . . . Robots Melted . | . . . Combat Hostiles . | . . . Parts Melted 2 | 1 . 1 Heat Transferred 3210 | 903 . 2307 Parts Sabotaged . | . . . Parts Stolen . | . . . Parts Stripped . | . . . Power Chain Reactions . | . . . Alert | -11 -10 -10 ------- Run | Yrd Mat Sub Maximum Alert Level . | . . . Low Security (%) 100 | 100 100 . Level 1 . | . . . Level 2 . | . . . Level 3 . | . . . Level 4 . | . . . Level 5 . | . . . High Security . | . . . Max Security . | . . . Peak Influence 5 | 5 . . Initial . | . . . Average . | . . . Influence Increases 195 | 30 . 165 Destroy 0b10 Robot/C 140 | . . 140 Destroy 0b10 Robot/NC 30 | 30 . . Destroy Leader 10 | . . 10 Lose Combat Pursuer 15 | . . 15 Influence Decreases 48 | 30 . 18 Time Decay 48 | 30 . 18 Squads Dispatched . | . . . Investigation . | . . . Extermination . | . . . Reinforcement . | . . . Assault . | . . . Garrison . | . . . Intercept . | . . . Searches Triggered . | . . . Construction Impeded . | . . . Haulers Reinforced . | . . . Active Scanning Responses . | . . . Cargo Convoy Interrupts . | . . . Stealth | -11 -10 -10 --------- Run | Yrd Mat Sub Distress Signals . | . . . Communications Jammed . | . . . Distress Signals . | . . . Times Spotted 15 | . . 15 Peak Tracking Total 6 | . . 6 Tactical Retreats 1 | . . 1 Traps | -11 -10 -10 ------- Run | Yrd Mat Sub Traps Triggered 1 | . . 1 Indirectly . | . . . Trap Hack Attempts . | . . . Triggered . | . . . Disarmed . | . . . Reprogrammed . | . . . Reused . | . . . Traps Extracted . | . . . Installed . | . . . Triggered . | . . . Machines | -11 -10 -10 ---------- Run | Yrd Mat Sub Machines Disabled . | . . . Max in Single Turn . | . . . Machines Repaired . | . . . Machines Dismantled . | . . . Machines Sabotaged . | . . . Overloaded Fab Kills . | . . . Hacking | -11 -10 -10 --------- Run | Yrd Mat Sub Machines Accessed . | . . . Terminals . | . . . Fabricators . | . . . Repair Stations . | . . . Recycling Units . | . . . Scanalyzers . | . . . Garrison Access . | . . . Total Hacks . | . . . Successful . | . . . Failed . | . . . Catastrophic . | . . . Database Lockouts . | . . . Manual . | . . . Terminals . | . . . Fabricators . | . . . Repair Stations . | . . . Recycling Units . | . . . Scanalyzers . | . . . Garrison Access . | . . . Terminal Hacks . | . . . Fabricator Hacks . | . . . Repair Station Hacks . | . . . Recycling Unit Hacks . | . . . Scanalyzer . | . . . Garrison Access Hacks . | . . . Unauthorized Hacks . | . . . Terminals . | . . . Fabricators . | . . . Repair Stations . | . . . Recycling Units . | . . . Scanalyzers . | . . . Garrison Access . | . . . Data Cores Recovered . | . . . Used . | . . . Hacking Detections . | . . . Full Trace Events . | . . . Feedback Events . | . . . Feedback Blocked . | . . . Robot Schematics Acquired . | . . . Robots Built . | . . . Authchips . | . . . Time . | . . . Total Robot Build Rating . | . . . Part Schematics Acquired . | . . . Parts Built . | . . . Authchips . | . . . Time . | . . . Total Part Build Rating . | . . . Part Studies Acquired . | . . . Parts Repaired . | . . . Time . | . . . Parts Recycled . | . . . Recycled Matter . | . . . Retrieved Matter . | . . . Retrieved Components . | . . . Parts Scanalyzed . | . . . Part Schematics Acquired . | . . . Parts Damaged . | . . . Bothacking | -11 -10 -10 ------------ Run | Yrd Mat Sub Used RIF Installer . | . . . Robots Hacked . | . . . Non-combat . | . . . Combat . | . . . Robot Hacks Applied . | . . . Relay Couplers Released . | . . . Fabnet Peak Effective % . | . . . Robots Rewired . | . . . Allies Hacked . | . . . Hacks Repelled . | . . . Allies | -11 -10 -10 -------- Run | Yrd Mat Sub Total Allies . | . . . Largest Group . | . . . Highest-Rated Group . | . . . Highest-Rated Ally . | . . . Total Orders . | . . . Ally Attacks . | . . . Total Damage . | . . . Kills . | . . . Allies Corrupted . | . . . Allies Melted . | . . . Intel | -11 -10 -10 ------- Run | Yrd Mat Sub Active Infowar (turns) 1125 | 139 324 662 Seismic 1125 | 139 324 662 Robot Analysis Total . | . . . Derelict Logs Recovered . | . . . Drone Launches . | . . . Drone Recoveries . | . . . Exploration | -11 -10 -10 ------------- Run | Yrd Mat Sub Turns Passed 1698 | 239 324 1135 Spaces Moved 830 | 103 120 607 Core 11 | 3 . 8 Treads 498 | 95 120 283 Legs . | . . . Wheels 321 | 5 . 316 Hover . | . . . Flight . | . . . Fastest Speed 50 | 50 160 110 Average Speed 154 | 154 160 153 Slowest Speed 550 | 160 160 550 Overloaded Moves . | . . . Propulsion Burnouts . | . . . Robots Hopped . | . . . Potential Cave-ins . | . . . Cave-ins Triggered . | . . . Exploration Rate (%) 24 | 6 25 42 Regions Visited 2 Branch Regions 1 Pre-discovered Areas 1 | . . 1 Known Exits Taken . | . . . Unknown Exits Taken 2 | 1 1 . Scrap Searched . | . . . Spaces Dug . | . . . Terrain Destroyed 10 | . . 10 Melee . | . . . Projectile . | . . . AOE 10 | . . 10 Terrain Rammed . | . . . Walls Destroyed . | . . . Machines Disabled . | . . . Actions | -11 -10 -10 --------- Run | Yrd Mat Sub Total 1113 | 141 252 720 Wait 186 | 7 128 51 Move 828 | 102 119 607 Hop . | . . . Pick Up 10 | 3 3 4 Fast Attach 9 | 7 . 2 Attach 3 | . . 3 Detach 1 | . . 1 Swap 11 | 2 1 8 Drop 2 | 1 1 . Fire 63 | 19 . 44 Melee . | . . . Ram . | . . . Kick . | . . . Crush . | . . . Escape Stasis . | . . . Rewire . | . . . Trap . | . . . Miscellaneous . | . . . Route ------- -11/Scrapyard -10/Materials (discovered 3 exits: [*Mat] / [*Min] / [*Sub]) -10/Subcaves History --------- Turn | Location | Event 16 | -11/Scrapyard | Discovered new exit (range 15) 240 | -11/Scrapyard | Entered Materials 302 | -10/Materials | Build established: Mutant 312 | -10/Materials | Discovered new exit (range 15) 391 | -10/Materials | Discovered new exit (range 8) 553 | -10/Materials | Discovered new exit (range 7) 564 | -10/Materials | Entered Subcaves 565 | -10/Subcaves | Approached by a straggling Scientist 959 | -10/Subcaves | Core integrity fell below 50% 995 | -10/Subcaves | Lost 3 parts (1n1u1w) 1051 | -10/Subcaves | Learned location of Zion (-7) 1051 | -10/Subcaves | Met a Zionite searching for "candidates" 1135 | -10/Subcaves | Shifting Twisted Machinery released Sub. Laser 1469 | -10/Subcaves | Disturbed a concealed Subdweller 1517 | -10/Subcaves | Core integrity fell below 20% 1699 | -10/Subcaves | Destroyed by Autobeam Turret with Autobeam Last Messages --------------- 2Q-JR2(c): "I think it's somewhere northwest of here" 01628_ S-10 Pest destroyed. 01632_ Y-45 Defender destroyed. 2Q-JR2(c): "I think it's somewhere north of here" 01638_ Flight Unit fries itself beyond repair. 01638_ Acquired 34 matter. 01639_ Acquired 6 matter. 01642_ Lgt. Treads fries itself beyond repair. 01643_ Beam Rifle fries itself beyond repair. 01644_ Heat Sink fries itself beyond repair. 01645_ Flight Unit fries itself beyond repair. 01645_ Lgt. Ion Engine fries itself beyond repair. 01670_ Sub. Power Source shoots sparks and powers down. 2Q-JR2(c): "I think it's somewhere north of here" 01697_ S-10 Pest destroyed. Map ----- +----------------------------------------------------+ | ?????????????????????????????????????????????? | | ?????????????????????????????????????????????? | | ?????????????????????????????????????????????? | | ?????????????????????????????????????????????? | | ????????????????????###??????????????????????? | | ????????????????##### ##?????????????????????? | | ????????????????# #?????????????????????? | | ????????????????# ###?????????????????????? | | ????????????????# #####?????###???????????? | | ????????????????## # #????## ########????? | | ?????????????????# ##??## # "####?? | | ?????????????????# #### ! ""### | | ????????????????## # # # ## %% ["" "" | | ????????????????# ### % % % =" " """ | | ????????????????## #### % #""" "" | | ????????????????# ## # # % ##" " " | | ????????????????## ##### ## ###"" "" | | ????????????????# # ## % #?# % " | | ????????????????## # #% #?# " | | ?????????????????# # # ##### ###### "% | | ?????????????????### # ## ##??# " | | ???????????????????## # &% ### "## | | ???????????????????# c # ""?## | | ???????????????????## ##### #### ## | | ????????????????????# ##???###??#### % | | ????????????????????#@ #????????????# | | ????????????????????#% #???????????# | | ???????????????????? #?????????## ### | | ???????????????????? % %%*????????## #??# | | ???????????????????% # =s% ??????# ???# | | ???????????????????#### % t?????##?##? | | ??????????????????????? = ????##### # | | ??????????????????????? # ???## | | ??????????????????????? #####" ????# | | ??????????????????????? ##?????##??### | | ???????????????????????? #??????????# | | ????????????????????????##???????# ## | | ?????????????????????????????????## ??## | | ??????????????????????????????????## ?????# | | ???????????????????????????????????#??????# | | ????????????????????????????????????? | | ????????????????????????????????????# | | ?????????????????????????????????? % | | ????????????????????????????????? | | ????????????????????????????????? | | ????????????????????????????????? | | ?????????????????????????????????? #### | | ?????????????????????????????????? ##???## | | ??????????????????????????????????? ??????? | | ??????????????????????????????????? ???????? | +----------------------------------------------------+ Best States ------------- Heat Dissipation 25 Energy Generation 15 Energy Capacity 250 Matter Stores 300 Matter Capacity 300 Sight Range 16 Terrain Scan Density 10 Evasion (%) 40 Recoil Reduction 2 Item Schematics ----------------- None Robot Schematics ------------------ None Fabricated ------------ Nothing Repaired ---------- Nothing Studied --------- None Alien Tech Used ----------------- None Achievements -------------- None Challenges ------------ None Game ------ Seed ZioniteExoskeletonCalibrator Manual? 0 Play Time 00:11:58 Cumulative 322.0 hours Start 2026.09.22 @ 19:18:31 End 2026.09.22 @ 19:27:32 Sessions 1 Manual Loads 0 Difficulty Rogue Special Mode None Game No. 398 Rogue 398 Adventurer 0 Explorer 0 Win Type - Total 10 Types 7/0/1/1/0/0/0/1/0/0 Lore% 82 Gallery% 70 Achievement% 60 Wizard Run 0 Options --------- Layout 2 ASCII 0 Keyboard 0 Movement Mouse Keybinds 0 Fullscreen 1 Font 16/SmallcapsGlow Map View 50x49 Zoom Use 0% Tactical HUD 1 Map Filters NONE Filters NONE Steam SD RUN: 980bbe44-c78e-4567-a048-6ec132f4d7b4